bitfinex-derivatives/quotes_SOLF0:USTF0_20250911
["timestamp","ask_amount","ask_price","bid_price","bid_amount"]
[1757580198211,7.04,222.8,222.71,7.2]
[1757580198408,3.55813045,222.79,222.71,7.2]
[1757580198609,7.04,222.8,222.71,7.2]
[1757580198810,3.55813045,222.79,222.71,7.2]
[1757580199005,7.04,222.8,222.71,7.2]
[1757580199206,3.55816818,222.79,222.71,7.2]
[1757580199405,3.55816818,222.78,222.71,7.2]
[1757580199606,7.04,222.8,222.71,7.2]
[1757580199807,3.55826011,222.79,222.71,7.2]
[1757580200104,3.55826011,222.78,222.71,7.2]
[1757580200306,7.04,222.8,222.71,7.2]
[1757580200505,3.5583377,222.79,222.71,7.2]
[1757580200701,3.5583377,222.78,222.71,7.2]
[1757580200905,7.04,222.8,222.71,7.2]
[1757580201115,7.04,222.78,222.71,7.2]
[1757580201605,3.55902826,222.77,222.71,7.2]
[1757580201803,3.55879599,222.76,222.71,7.2]
[1757580202003,7.04,222.79,222.71,7.2]
[1757580202205,7.04,222.77,222.71,7.2]
[1757580202405,3.55846319,222.76,222.71,7.2]
[1757580202605,7.04,222.74,222.69,7.14]
[1757580202803,7.04,222.74,222.68,60.17416452]
[1757580203209,7.04,222.74,222.69,7.14]
[1757580203410,7.04,222.79,222.69,7.14]
[1757580203610,7.04,222.77,222.69,7.14]
[1757580203807,7.04,222.75,222.69,7.14]
[1757580211415,5.02944263,222.84,222.69,7.14]
[1757580211621,14.0886156,222.83,222.72,5.01416452]
[1757580211920,3.54923868,222.82,222.73,7.01]
[1757580212115,3.54923868,222.81,222.73,7.01]
[1757580212316,3.54923868,222.8,222.73,7.01]
[1757580212521,7.08,222.83,222.73,7.01]
[1757580212724,7.00953922,222.82,222.73,7.01]
[1757580212922,3.54968073,222.81,222.73,7.01]
[1757580213220,3.54968073,222.8,222.73,7.01]
[1757580213424,7.08,222.83,222.73,7.01]
[1757580213619,7.00914633,222.82,222.73,7.01]
[1757580213815,3.54948175,222.81,222.73,7.01]
[1757580214021,10.62948175,222.8,222.73,7.01]
[1757580214223,7.08,222.8,222.73,7.01]
[1757580215017,7.08,222.84,222.73,7.01]
[1757580215323,7.00853883,222.83,222.73,7.01]
[1757580215524,3.54912058,222.82,222.73,7.01]
[1757580215715,3.54912058,222.81,222.73,7.01]
[1757580215914,7.08,222.84,222.73,7.01]
[1757580216118,7.00854444,222.83,222.73,7.01]
[1757580216316,3.54917126,222.82,222.73,7.01]
[1757580216516,3.54917126,222.81,222.73,7.01]
[1757580216717,7.08,222.84,222.73,7.01]
[1757580216920,7.00798649,222.83,222.73,7.01]
[1757580217118,3.54888871,222.82,222.73,7.01]
[1757580217325,3.54888871,222.81,222.73,7.01]
[1757580217618,3.54888871,222.81,222.72,5.01416452]
[1757580217619,2.59383338,222.88,222.75,7.01]
[1757580217825,454.48,223.02,222.75,12.02416452]
[1757580217826,14.087775,222.87,222.75,12.02416452]
[1757580218020,7.007775,222.86,222.76,7.01]
[1757580218220,3.54877677,222.85,222.78,7.01]
[1757580218426,3.54877677,222.84,222.78,7.01]
[1757580218630,7.08,222.87,222.78,7.01]
[1757580218930,3.5480416,222.86,222.78,7.01]
[1757580219126,3.5480416,222.85,222.78,7.01]
[1757580219327,7.08,222.87,222.78,7.01]
[1757580219530,3.54715051,222.86,222.78,7.01]
[1757580219831,7.08,222.87,222.78,7.01]
[1757580220032,7.08,222.85,222.78,7.01]
[1757580221122,13.66075154,222.9,222.7,12.02416452]
[1757580221123,7.08,222.79,222.7,12.02416452]
[1757580221325,7.08,222.76,222.7,7.01]
[1757580221733,8.73854399,222.76,222.7,7.01]
[1757580223734,7.08,222.76,222.7,7.01]
[1757580225733,5.02944263,222.88,222.7,8.66854399]
[1757580225938,7.08,222.83,222.74,1.65854399]
[1757580226234,7.08,222.83,222.75,7.01]
[1757580226235,7.31806365,222.82,222.75,7.01]
[1757580226432,3.77422473,222.81,222.75,7.01]
[1757580226733,7.08,222.83,222.75,7.01]
[1757580226932,7.31853264,222.82,222.75,7.01]
[1757580227136,3.77457739,222.81,222.75,7.01]
[1757580227338,7.08,222.83,222.75,7.01]
[1757580227540,7.08,222.81,222.74,1.65854399]
[1757580228131,7.08,222.81,222.74,8.66854399]
[1757580228536,7.08,222.9,222.75,5.01416452]
[1757580228842,7.08,222.88,222.79,7.01]
[1757580229036,7.31994717,222.87,222.79,7.01]
[1757580229240,7.08,222.88,222.79,7.01]
[1757580229541,3.5436987,222.87,222.79,7.01]
[1757580229739,7.08,222.88,222.79,7.01]
[1757580230035,3.5436987,222.87,222.79,7.01]
[1757580230231,8.73854399,222.88,222.79,7.01]
[1757580230434,3.54291415,222.87,222.79,7.01]
[1757580230631,7.08,222.88,222.79,7.01]
[1757580230833,3.54291415,222.87,222.79,7.01]
[1757580231031,7.08,222.88,222.79,7.01]
[1757580231234,3.54220978,222.87,222.79,7.01]
[1757580231435,7.08,222.88,222.79,7.01]
[1757580231741,3.54220978,222.87,222.79,7.01]
[1757580231940,7.08,222.88,222.79,7.01]
[1757580232241,3.54220978,222.87,222.79,7.01]
[1757580232443,7.08,222.88,222.79,7.01]
[1757580232639,7.08,222.88,222.82,7.01]
[1757580232839,0.03242387,222.86,222.82,7.01]
[1757580233435,0.03242387,222.86,222.81,1.69111859]
[1757580233836,0.03242387,222.86,222.82,7.01]
[1757580234241,0.03242387,222.86,222.81,1.69111859]
[1757580234642,0.03242387,222.86,222.82,7.01]
[1757580235039,0.03242387,222.86,222.81,1.69111859]
[1757580235440,0.03242387,222.86,222.82,7.01]
[1757580235641,0.03242387,222.86,222.81,1.69111859]
[1757580236245,0.03242387,222.86,222.82,7.01]
[1757580237549,7.66,222.85,222.81,0.0325746]
[1757580237841,0.03242387,222.86,222.81,0.0325746]
[1757580238038,7.66,222.85,222.81,0.0325746]
[1757580238437,0.03242387,222.86,222.81,0.0325746]
[1757580239347,7.66,222.85,222.81,0.0325746]
[1757580239737,0.03242387,222.86,222.81,0.0325746]
[1757580240946,7.66,222.85,222.81,0.0325746]
[1757580241342,0.03242387,222.86,222.81,7.6525746]
[1757580241552,7.66,222.85,222.81,7.6525746]
[1757580241848,0.03242387,222.86,222.81,7.6525746]
[1757580242048,7.66,222.85,222.81,7.6525746]
[1757580242450,0.03242387,222.86,222.81,7.6525746]
[1757580242649,7.66,222.85,222.81,7.6525746]
[1757580242844,0.03242387,222.86,222.81,7.6525746]
[1757580243044,7.66,222.85,222.81,7.6525746]
[1757580244947,0.03242387,222.86,222.81,7.6525746]
[1757580245144,7.66,222.85,222.81,7.6525746]
[1757580246043,0.03242387,222.86,222.81,7.6525746]
[1757580246244,0.03242387,222.86,222.81,0.0325746]
[1757580246548,7.66,222.85,222.81,0.0325746]
[1757580246846,0.03242387,222.86,222.81,0.0325746]
[1757580247242,0.03242387,222.86,222.81,7.6525746]
[1757580247547,7.66,222.85,222.81,7.6525746]
[1757580247848,0.03242387,222.86,222.81,7.6525746]
[1757580248148,7.66,222.85,222.81,7.6525746]
[1757580249750,7.66,222.85,222.81,0.0325746]
[1757580249946,7.66,222.85,222.81,7.6525746]
[1757580250347,0.03242387,222.86,222.81,0.0325746]
[1757580250552,0.03242387,222.86,222.82,7.62]
[1757580251850,0.03242387,222.86,222.81,0.0325746]
[1757580252051,0.03242387,222.86,222.82,7.62]
[1757580252250,0.03242387,222.86,222.82,1.65854399]
[1757580252652,0.03242387,222.86,222.83,7.62]
[1757580252850,0.03242387,222.86,222.82,1.65854399]
[1757580253052,0.03242387,222.86,222.83,7.62]
[1757580253248,0.03242387,222.86,222.82,1.65854399]
[1757580253453,0.03242387,222.86,222.83,7.62]
[1757580253644,0.03242387,222.86,222.82,1.65854399]
[1757580254048,0.03242387,222.86,222.83,7.62]
[1757580255149,1.65854399,222.95,222.83,7.62]
[1757580255150,7.66,222.94,222.83,7.62]
[1757580255350,7.17566531,222.93,222.83,7.62]
[1757580255559,7.17566531,222.92,222.83,7.62]
[1757580255850,3.55555661,222.91,222.83,7.62]
[1757580256154,7.66,222.94,222.83,7.62]
[1757580256457,7.17718095,222.93,222.86,7.62]
[1757580256654,7.17718095,222.92,222.86,7.62]
[1757580256849,3.55630756,222.91,222.86,7.62]
[1757580257049,7.66,222.94,222.86,7.62]
[1757580257250,7.17650347,222.93,222.86,7.62]
[1757580257454,7.17650347,222.92,222.86,7.62]
[1757580257655,1.65854399,222.95,222.82,1.65854399]
[1757580257656,11.21597187,222.91,222.88,7.62]
[1757580257856,7.66,222.91,222.88,7.62]
[1757580259152,7.66,222.91,222.87,0.03443149]
[1757580259457,7.66,222.91,222.88,7.62]
[1757580260059,7.66,222.98,222.88,7.62]
[1757580260248,26.25615793,222.99,222.88,7.62]
[1757580260249,9.31854399,222.95,222.88,7.62]
[1757580260447,7.17589584,222.94,222.88,7.62]
[1757580260652,7.17589584,222.93,222.87,0.03443149]
[1757580260955,3.55566774,222.92,222.87,0.03443149]
[1757580261152,7.66,222.94,222.88,7.62]
[1757580261348,7.66,222.92,222.88,7.62]
[1757580261549,7.66,222.94,222.88,7.62]
[1757580261755,7.66,222.92,222.88,7.62]
[1757580261948,7.66,222.94,222.88,7.62]
[1757580262154,7.17480075,222.93,222.88,7.62]
[1757580262355,7.66,222.91,222.88,7.62]
[1757580264153,1.65854399,222.95,222.87,0.03443149]
[1757580264355,7.66,222.88,222.87,0.03443149]
[1757580264561,11.21429982,222.88,222.87,0.03443149]
[1757580264755,14.83221697,222.88,222.87,0.03443149]
[1757580265160,11.21429982,222.88,222.87,0.03443149]
[1757580265461,14.83235329,222.88,222.87,0.03443149]
[1757580272964,16.49089728,222.88,222.87,0.03443149]
[1757580273163,14.83235329,222.88,222.87,0.03443149]
[1757580273365,16.49089728,222.88,222.87,0.03443149]
[1757580274967,14.83235329,222.88,222.87,0.03443149]
[1757580275267,16.49089728,222.88,222.87,0.03443149]
[1757580275766,14.83235329,222.88,222.87,0.03443149]
[1757580279469,16.49089728,222.88,222.87,0.03443149]
[1757580279671,14.83235329,222.88,222.87,0.03443149]
[1757580280172,16.49089728,222.88,222.87,0.03443149]
[1757580280372,14.83235329,222.88,222.87,0.03443149]
[1757580281879,14.83235329,222.88,222.81,7.07]
[1757580282073,7.04,222.86,222.81,7.07]
[1757580282377,7.04,222.91,222.81,7.07]
[1757580282677,7.04,222.89,222.81,7.07]
[1757580282879,7.04,222.87,222.81,7.07]
[1757580283075,10.59875127,222.86,222.77,7.07]
[1757580283273,7.04,222.86,222.77,7.07]
[1757580286674,3.55893588,222.85,222.77,7.07]
[1757580286977,7.04,222.86,222.77,7.07]
[1757580287278,3.55893433,222.85,222.77,7.07]
[1757580287479,7.04,222.86,222.77,7.07]
[1757580287682,3.55890193,222.85,222.77,7.07]
[1757580287980,7.04,222.86,222.77,7.07]
[1757580288280,3.55890193,222.85,222.77,7.07]
[1757580288470,7.04,222.86,222.77,7.07]
[1757580288673,3.5588714,222.85,222.77,7.07]
[1757580288883,7.04,222.86,222.77,7.07]
[1757580289181,3.5588714,222.85,222.77,7.07]
[1757580289481,7.04,222.91,222.77,7.07]
[1757580289783,7.04,222.89,222.78,7.07]
[1757580289977,7.18535701,222.88,222.78,7.07]
[1757580290280,7.18535701,222.87,222.78,7.07]
[1757580290482,3.55898303,222.86,222.78,7.07]
[1757580290681,7.04,222.89,222.78,7.07]
[1757580290983,7.18541479,222.88,222.78,7.07]
[1757580291175,7.18541479,222.87,222.78,7.07]
[1757580291372,3.55901163,222.86,222.78,7.07]
[1757580291577,7.04,222.89,222.78,7.07]
[1757580291786,7.18547023,222.88,222.78,7.07]
[1757580291976,7.18547023,222.87,222.78,7.07]
[1757580292174,3.55903909,222.86,222.78,7.07]
[1757580292385,7.04,222.89,222.78,7.07]
[1757580292582,7.1855642,222.88,222.78,7.07]
[1757580292781,7.1855642,222.87,222.78,7.07]
[1757580292984,3.55908558,222.86,222.78,7.07]
[1757580293179,7.04,222.89,222.78,7.07]
[1757580293380,7.18558621,222.88,222.78,7.07]
[1757580293583,7.18558621,222.87,222.78,7.07]
[1757580293783,3.55909648,222.86,222.78,7.07]
[1757580294084,7.04,222.89,222.78,7.07]
[1757580294283,7.1855862,222.88,222.78,7.07]
[1757580294485,7.1855862,222.87,222.78,7.07]
[1757580294782,3.55909648,222.86,222.78,7.07]
[1757580294985,7.04,222.89,222.78,7.07]
[1757580295183,7.18564301,222.88,222.78,7.07]
[1757580295383,7.18564301,222.87,222.78,7.07]
[1757580295682,3.55912462,222.86,222.78,7.07]
[1757580295883,7.04,222.94,222.82,7.07]
[1757580296078,7.04,223.02,222.85,7.07]
[1757580296274,7.04,223.02,222.84,5.01416452]
[1757580296275,0.0328381,222.9,222.87,7.07]
[1757580296476,7.04,222.98,222.87,7.07]
[1757580296680,3.56456828,222.97,222.87,7.07]
[1757580296883,7.04,223.02,222.88,7.07]
[1757580297079,3.56460797,223.01,222.88,7.07]
[1757580297285,3.56460797,223.0,222.88,7.07]
[1757580297487,3.56460797,222.99,222.89,6.97]
[1757580297686,7.04,223.02,222.92,0.03177354]
[1757580297984,3.56260833,223.01,222.93,6.97]
[1757580298184,7.04,223.02,222.93,6.97]
[1757580298185,7.05,222.99,222.93,6.97]
[1757580301086,3.55787912,222.98,222.92,0.03177354]
[1757580301287,3.55787912,222.97,222.92,0.03177354]
[1757580301487,7.05,222.99,222.92,0.03177354]
[1757580301786,3.55716995,222.98,222.92,0.03177354]
[1757580301987,7.05,222.99,222.92,0.03177354]
[1757580302187,7.05,222.97,222.92,0.03177354]
[1757580302382,7.05,222.99,222.92,0.03177354]
[1757580302584,3.55630457,222.98,222.92,0.03177354]
[1757580302784,7.05,222.99,222.92,0.03177354]
[1757580302987,3.55659863,222.98,222.92,0.03177354]
[1757580303186,7.05,222.99,222.92,0.03177354]
[1757580305189,3.55700832,222.98,222.92,0.03177354]
[1757580305385,7.05,222.97,222.92,0.03177354]
[1757580306088,2.5915693,222.99,222.92,0.03177354]
[1757580306289,7.05,222.98,222.92,0.03177354]
[1757580307698,3.55587006,222.97,222.92,0.03177354]
[1757580307900,7.05,222.98,222.92,0.03177354]
[1757580308101,7.05,222.96,222.92,0.03177354]
[1757580310299,7.05,222.98,222.92,0.03177354]
[1757580310501,2.5915693,222.99,222.92,0.03177354]
[1757580310700,7.05,222.98,222.92,0.03177354]
[1757580311104,7.05,222.98,222.92,7.00177354]
[1757580312102,7.05,222.98,222.92,0.03177354]
[1757580327320,7.12,222.96,222.92,0.03177354]
[1757580327817,7.12,222.99,222.92,0.03177354]
[1757580328018,7.12,222.97,222.92,0.03177354]
[1757580331119,3.55526837,222.96,222.92,0.03177354]
[1757580331420,7.12,222.99,222.92,0.03177354]
[1757580331622,7.12,222.97,222.92,0.03177354]
[1757580331814,7.12,222.95,222.92,0.03177354]
[1757580332015,7.12,222.99,222.92,0.03177354]
[1757580332213,7.12,222.97,222.92,0.03177354]
[1757580332418,7.12,222.95,222.92,0.03177354]
[1757580332618,7.12,222.99,222.92,0.03177354]
[1757580332819,7.12,222.97,222.92,0.03177354]
[1757580333019,3.55681698,222.96,222.92,0.03177354]
[1757580333215,7.12,222.99,222.92,0.03177354]
[1757580333416,7.12,222.97,222.92,0.03177354]
[1757580333727,3.55790038,222.96,222.92,0.03177354]
[1757580333925,7.12,222.99,222.92,0.03177354]
[1757580334126,7.12,222.97,222.92,0.03177354]
[1757580334327,3.55790038,222.96,222.92,0.03177354]
[1757580334627,3.55790038,222.95,222.92,0.03177354]
[1757580334823,7.12,222.98,222.92,0.03177354]
[1757580335119,7.12,222.96,222.92,0.03177354]
[1757580335324,3.55911474,222.95,222.92,0.03177354]
[1757580335529,7.12,222.99,222.92,0.03177354]
[1757580335719,10.68021732,222.98,222.92,6.96177354]
[1757580335921,10.68021732,222.97,222.92,0.03177354]
[1757580336118,3.56021732,222.96,222.93,6.93]
[1757580336328,3.56021732,222.96,222.92,0.03177354]
[1757580336529,3.56021732,222.96,222.93,6.93]
[1757580337026,7.12,222.95,222.93,6.93]
[1757580337327,7.12,222.95,222.92,0.03177354]
[1757580337828,7.12,223.02,222.92,0.03177354]
[1757580338029,7.12,223.0,222.92,0.03177354]
[1757580338229,7.12,222.98,222.92,0.03177354]
[1757580338428,7.12,222.96,222.92,0.03177354]
[1757580338727,66.38965152,223.03,222.92,0.03177354]
[1757580338728,7.12,222.94,222.92,0.03177354]
[1757580339424,7.12,223.02,222.92,0.03177354]
[1757580339629,7.12,223.0,222.92,0.03177354]
[1757580339829,7.12,222.98,222.92,0.03177354]
[1757580340031,3.56707429,222.97,222.92,0.03177354]
[1757580340225,66.38965152,223.03,222.92,0.03177354]
[1757580340226,3.56707429,222.96,222.92,0.03177354]
[1757580340432,10.68707429,222.95,222.92,0.03177354]
[1757580340632,10.68707429,222.94,222.92,0.03177354]
[1757580340829,7.12,223.02,222.92,0.03177354]
[1757580341028,7.12,222.98,222.92,0.03177354]
[1757580341232,7.12,222.94,222.92,0.03177354]
[1757580341536,7.12,222.92,222.83,6.93]
[1757580341729,6.95523791,222.91,222.83,6.93]
[1757580341929,3.56997294,222.9,222.83,6.93]
[1757580342129,3.56997294,222.89,222.83,6.93]
[1757580342331,3.56997294,222.88,222.81,17.81416452]
[1757580342634,1.65818237,222.91,222.84,3.77761153]
[1757580342934,7.23706147,222.9,222.84,10.70761153]
[1757580343234,14.35706147,222.89,222.85,6.93]
[1757580343434,3.5675133,222.88,222.85,6.93]
[1757580343634,7.12,222.89,222.85,6.93]
[1757580343835,3.566462,222.88,222.85,6.93]
[1757580344026,7.12,222.89,222.83,3.77761153]
[1757580344228,3.77963882,222.88,222.83,3.77761153]
[1757580344429,3.77963882,222.87,222.84,6.93]
[1757580344636,3.77963882,222.86,222.83,3.77761153]
[1757580344832,7.12,222.89,222.84,6.93]
[1757580345135,3.77991606,222.88,222.83,3.77761153]
[1757580345332,3.77991606,222.87,222.83,3.77761153]
[1757580345535,7.12,222.89,222.84,6.93]
[1757580345736,3.65948902,222.88,222.84,6.93]
[1757580346036,7.12,222.93,222.84,6.93]
[1757580346229,7.3253857,222.92,222.85,6.93]
[1757580346428,7.3253857,222.91,222.85,6.93]
[1757580346634,7.3253857,222.9,222.85,6.93]
[1757580346933,3.65910785,222.89,222.84,3.77761153]
[1757580347135,7.12,222.93,222.85,6.93]
[1757580347432,7.32415443,222.92,222.85,6.93]
[1757580347638,7.32415443,222.91,222.85,6.93]
[1757580347834,7.32415443,222.9,222.84,3.77761153]
[1757580348035,3.65849135,222.89,222.85,6.93]
[1757580348339,7.12,222.93,222.85,6.93]
[1757580348536,7.32248846,222.92,222.85,6.93]
[1757580348837,7.32248846,222.91,222.85,6.93]
[1757580349036,3.65765918,222.9,222.84,3.77761153]
[1757580349241,3.65765918,222.89,222.85,6.93]
[1757580349437,7.12,222.93,222.85,6.93]
[1757580349634,7.32154413,222.92,222.85,6.93]
[1757580349834,7.32154413,222.91,222.85,6.93]
[1757580350038,3.65718748,222.9,222.85,6.93]
[1757580350239,3.65718748,222.89,222.84,3.77761153]
[1757580350540,7.12,222.93,222.85,6.93]
[1757580350739,7.3197538,222.92,222.85,6.93]
[1757580350939,7.3197538,222.91,222.85,6.93]
[1757580351239,3.65629319,222.9,222.84,6.93]
[1757580351433,3.65629319,222.89,222.83,113.53761153]
[1757580351634,7.12,222.92,222.84,6.93]
[1757580351834,7.31744056,222.91,222.84,6.93]
[1757580352037,3.6551377,222.9,222.84,6.93]
[1757580352235,3.6551377,222.89,222.84,6.93]
[1757580352436,7.12,222.92,222.84,6.93]
[1757580352638,7.31698343,222.91,222.84,6.93]
[1757580352832,3.65490928,222.9,222.84,6.93]
[1757580353030,3.65490928,222.89,222.83,113.53761153]
[1757580353230,7.12,222.92,222.84,6.93]
[1757580353432,7.31666129,222.91,222.84,6.93]
[1757580353629,3.65474837,222.9,222.84,6.93]
[1757580353836,3.65474837,222.89,222.84,6.93]
[1757580354037,7.12,222.92,222.84,6.93]
[1757580354239,7.3160935,222.91,222.84,6.93]
[1757580354440,3.65446476,222.9,222.84,6.93]
[1757580354640,3.65446476,222.89,222.83,113.53761153]
[1757580354841,7.12,222.92,222.84,6.93]
[1757580355042,7.315946,222.91,222.84,6.93]
[1757580355343,3.65446474,222.9,222.84,6.93]
[1757580355537,3.65446474,222.89,222.84,6.93]
[1757580355741,7.12,222.92,222.84,6.93]
[1757580355943,7.3152767,222.91,222.84,6.93]
[1757580356245,3.65405675,222.9,222.84,6.93]
[1757580356442,3.65405675,222.89,222.84,6.93]
[1757580356634,7.12,222.92,222.84,6.93]
[1757580356835,7.30299707,222.91,222.84,6.93]
[1757580357040,3.64212098,222.9,222.84,6.93]
[1757580357244,3.64212098,222.89,222.84,6.94]
[1757580357439,7.12,222.92,222.84,6.94]
[1757580357739,3.64210949,222.91,222.84,6.94]
[1757580357938,3.64210949,222.9,222.84,6.94]
[1757580358142,3.64210949,222.89,222.84,6.94]
[1757580358339,7.12,222.92,222.84,6.94]
[1757580358639,3.64201418,222.91,222.84,6.94]
[1757580358840,3.64201418,222.9,222.84,6.94]
[1757580359039,3.64201418,222.89,222.84,6.94]
[1757580359240,7.12,222.92,222.84,6.94]
[1757580359437,3.64195974,222.91,222.84,6.94]
[1757580359640,3.64195974,222.9,222.84,6.94]
[1757580359844,7.12,222.92,222.84,6.94]
[1757580360046,3.64195777,222.91,222.84,6.94]
[1757580360246,3.64195777,222.9,222.84,6.94]
[1757580360447,3.64195723,222.89,222.84,6.94]
[1757580360650,7.12,222.92,222.84,6.94]
[1757580360848,3.64195882,222.91,222.84,6.94]
[1757580361048,3.64195882,222.9,222.84,6.94]
[1757580361243,7.12,222.92,222.84,6.94]
[1757580361444,3.6410654,222.91,222.84,6.94]
[1757580361642,3.6410654,222.9,222.84,6.94]
[1757580361843,7.12,222.92,222.84,6.94]
[1757580362044,3.6410654,222.91,222.84,6.94]
[1757580362345,3.6410654,222.9,222.84,6.94]
[1757580362545,7.12,222.92,222.85,27.32]
[1757580362745,3.64107878,222.91,222.85,27.32]
[1757580362942,10.94107878,222.9,222.85,27.32]
[1757580363248,1.65818237,222.91,222.83,56.59761153]
[1757580363449,10.94024955,222.9,222.83,56.59761153]
[1757580363645,7.3,222.9,222.83,56.59761153]
[1757580364152,3.63473963,222.89,222.83,56.59761153]
[1757580364355,7.3,222.9,222.83,56.59761153]
[1757580364554,3.63446669,222.89,222.83,56.59761153]
[1757580364756,7.3,222.9,222.83,56.59761153]
[1757580364955,3.63467535,222.89,222.83,56.59761153]
[1757580365151,7.3,222.9,222.83,56.59761153]
[1757580365357,3.63480703,222.89,222.83,56.59761153]
[1757580365550,7.3,222.9,222.83,56.59761153]
[1757580365750,3.63480862,222.89,222.83,56.59761153]
[1757580365951,7.3,222.9,222.83,56.59761153]
[1757580366153,3.63480866,222.89,222.83,56.59761153]
[1757580366354,7.3,222.9,222.83,56.59761153]
[1757580366554,3.63490362,222.89,222.83,56.59761153]
[1757580366753,7.3,222.9,222.83,56.59761153]
[1757580366954,3.63504379,222.89,222.83,56.59761153]
[1757580367150,7.3,222.9,222.83,56.59761153]
[1757580367354,3.63517654,222.89,222.83,56.59761153]
[1757580367553,7.3,222.9,222.83,56.59761153]
[1757580367754,3.63517654,222.89,222.83,56.59761153]
[1757580367956,7.3,222.9,222.83,56.59761153]
[1757580368157,3.63517654,222.89,222.83,56.59761153]
[1757580368459,7.3,222.9,222.83,56.59761153]
[1757580368651,3.63535063,222.89,222.83,56.59761153]
[1757580368851,7.3,222.9,222.83,56.59761153]
[1757580369151,3.63535063,222.89,222.83,56.59761153]
[1757580369456,7.3,222.9,222.83,56.59761153]
[1757580369652,3.63556352,222.89,222.83,56.59761153]
[1757580369850,7.3,222.9,222.83,56.59761153]
[1757580370051,3.63556444,222.89,222.83,56.59761153]
[1757580370252,7.3,222.9,222.83,56.59761153]
[1757580370453,3.63581819,222.89,222.84,6.94]
[1757580370654,8.95818237,222.91,222.84,6.94]
[1757580370956,3.63581978,222.9,222.84,6.94]
[1757580371251,3.63581978,222.89,222.84,6.94]
[1757580371458,8.95818237,222.91,222.84,6.94]
[1757580371660,3.63612414,222.9,222.84,6.94]
[1757580371848,3.63612414,222.89,222.83,49.6531531]
[1757580372051,8.95818237,222.91,222.84,6.94]
[1757580372259,3.63641308,222.9,222.84,6.94]
[1757580372459,3.63641308,222.89,222.84,6.94]
[1757580372655,8.95818237,222.91,222.84,6.94]
[1757580372859,3.63647377,222.9,222.84,6.94]
[1757580373160,3.63647377,222.89,222.84,6.94]
[1757580373358,8.95818237,222.91,222.84,6.94]
[1757580373661,3.6364771,222.9,222.84,6.94]
[1757580373959,3.6364771,222.89,222.84,6.94]
[1757580374158,8.95818237,222.91,222.84,6.94]
[1757580374460,3.63665221,222.9,222.84,6.94]
[1757580374756,3.63665221,222.89,222.84,6.94]
[1757580374956,1.65818237,222.92,222.84,6.94]
[1757580375158,7.18464807,222.91,222.84,6.94]
[1757580375356,3.63665221,222.9,222.84,6.94]
[1757580375552,3.63685592,222.89,222.84,6.94]
[1757580375757,1.65818237,222.92,222.84,3.7731531]
[1757580375954,3.63697377,222.91,222.85,6.94]
[1757580376260,3.63697377,222.9,222.85,6.94]
[1757580376461,3.63697377,222.89,222.85,6.94]
[1757580376650,1.65818237,222.92,222.86,6.94]
[1757580376850,7.3,222.97,222.87,10.7131531]
[1757580377050,7.18708808,222.96,222.89,6.94]
[1757580377258,3.63786725,222.95,222.9,6.94]
[1757580377459,1.65818237,223.0,222.91,6.94]
[1757580377663,3.63851464,222.99,222.93,6.94]
[1757580377860,3.63851464,222.98,222.93,6.94]
[1757580378057,1.65818237,223.0,222.93,6.94]
[1757580378261,3.63870202,222.99,222.93,6.94]
[1757580378457,3.63870202,222.98,222.93,6.94]
[1757580378657,68.93771078,223.01,222.93,6.94]
[1757580378965,3.6370156,223.0,222.93,6.94]
[1757580379256,3.6370156,222.99,222.93,6.94]